[Event "Oceania Zonal Women 2023"]
[Site "Melbourne"]
[Date "2023.01.26"]
[Round "5.6"]
[White "Zhang, Jilin"]
[Black "Maunders, Myiesha"]
[Result "1-0"]
[ECO "B13"]
[WhiteElo "2212"]
[BlackElo "1498"]
[Annotator "TA"]
[PlyCount "136"]
[EventDate "2023.01.09"]
[EventType "swiss"]
[EventCountry "AUS"]
[SourceTitle "playchess.com"]
[Source "ChessBase"]
[SourceQuality "1"]
[TimeControl "5400+30"]

{[%evp 13,136,12,16,18,34,36,36,0,0,0,0,2,4,-3,16,0,0,-7,0,-1,27,-20,25,-12,-10,-33,-23,-17,0,-12,-6,-36,-18,-15,178,176,227,230,230,230,230,225,222,222,221,234,230,204,235,236,239,234,243,235,227,237,286,295,363,361,334,236,256,242,259,258,259,205,298,294,295,195,322,322,322,318,312,316,354,324,310,295,289,299,299,285,287,304,303,294,315,287,309,305,301,304,302,302,379,379,345,352,341,329,385,400,1928,1801,2545,1943,1880,1285,1217,1201,913,744,6410,6897,29980,29981,29981,29982,29981,29981,29986]} 1. e4 {[%emt 0:03:33]} c6 {[%emt 0:01:13]} 2. d4 {[%emt 0:00:18]} d5 {[%emt 0:00:04]} 3. exd5 {[%emt 0:00:18]} cxd5 {[%emt 0:00:03]} 4. Bd3 {[%emt 0:00:14]} Nc6 {[%emt 0:00:06]} 5. c3 {[%emt 0:00:06]} Nf6 {[%emt 0:00:26]} 6. h3 {[%emt 0:00:49]} Qc7 {[%emt 0:00:38]} 7. Nf3 {[%emt 0:07:07]} g6 {[%emt 0:01:23]} 8. Qc2 {[%emt 0:00:17] B13: Caro-Kann: Exchange Variation and Panov-Botvinnik Attack.} Bg7 {[%emt 0:01:13]} 9. O-O {[%emt 0:02:10]} O-O {[%emt 0:01:08]} 10. Nbd2 {[%emt 0:03:19] White is slightly better.} Nh5 {[%emt 0:04:37]} 11. Nb3 {[%emt 0:06:18]} Nf4 {[%emt 0:02:17]} 12. Bxf4 {[%emt 0:00:29]} Qxf4 {[%emt 0:00:04] [#]} 13. Qc1 $146 {[%emt 0:03:10]} ({Predecessor:} 13. Qd2 Qf6 14. Qe3 Bf5 15. Bxf5 Qxf5 16. Nc5 b6 17. Nd3 Rac8 18. Rae1 Rc7 19. Nfe5 {½-½ Yarosh,R (2019)-Nechaeva,M (2431) Chigorin Memorial 25th 2017 (1)}) 13... Bh6 {[%emt 0:02:06][%cal Of4f3]} 14. Qxf4 {[%emt 0:06:27]} (14. Bb5 {is interesting.} Nd8 15. Re1 a6 16. Bf1) 14... Bxf4 {[%emt 0:00:03]} 15. Rfe1 {[%emt 0:00:14]} Bd6 {[%emt 0:01:34]} 16. Ne5 {[%emt 0:02:27]} f6 {[%emt 0:03:06]} 17. Ng4 {[%emt 0:10:31]} (17. Nxc6 $142 bxc6 18. Na5) 17... a6 {[%emt 0:09:23]} 18. a4 {[%emt 0:01:41]} (18. Ne3 $5 {[%cal Re3d5]}) 18... e5 {[%emt 0:02:17]} 19. dxe5 {[%emt 0:05:31]} fxe5 {[%emt 0:01:51]} 20. Rad1 {[%emt 0:01:41][%cal Od3e4] Threatens to win with Be4!} Be6 {[%emt 0:01:16]} 21. Bc2 {[%emt 0:02:52]} Rad8 {[%emt 0:01:49]} 22. Nc1 {[%emt 0:01:11]} (22. Ne3 $5 {[%cal Re3d5]}) 22... e4 {[%emt 0:03:54]} 23. Ne3 {[%emt 0:02:23]} Rfe8 $2 {[%emt 0:10:53] Loses the game.} (23... Bb8 $11) 24. Nxd5 $18 {[%emt 0:03:07]} Bh2+ {[%emt 0:05:23]} (24... Bxd5 $142 25. Rxd5 Kf7 26. Bxe4 (26. Rxe4 Bh2+ {[%mdl 64] Discovered Attack} 27. Kxh2 Rxd5 $18) 26... Rxe4 27. Rxe4 Bh2+ {[%mdl 64] Discovered Attack} 28. Kxh2 Rxd5) 25. Kxh2 {[%emt 0:00:14]} Bxd5 {[%emt 0:00:06] [#]} 26. Rxd5 $1 {[%emt 0:00:34][%mdl 512]} Rxd5 {[%emt 0:00:08]} 27. Bb3 $1 {[%emt 0:00:05]} ({Worse is} 27. Rxe4 Rxe4 28. Bxe4 Rd2 $11) 27... Red8 {[%emt 0:04:27]} 28. Rxe4 {[%emt 0:00:46]} Kg7 {[%emt 0:00:09]} 29. Bxd5 {[%emt 0:00:11]} Rxd5 {[%emt 0:00:03][%mdl 4096] Endgame KRN-KRN} 30. Ne2 {[%emt 0:01:12]} Rd2 {[%emt 0:00:50]} 31. b4 {[%emt 0:00:50]} Ra2 {[%emt 0:01:07]} 32. b5 {[%emt 0:05:42]} axb5 {[%emt 0:00:30]} 33. axb5 {[%emt 0:00:06]} Na5 {[%emt 0:00:13]} 34. Kg3 {[%emt 0:08:42]} Rb2 {[%emt 0:00:22]} 35. Nd4 {[%emt 0:00:34]} Rd2 {[%emt 0:02:32]} 36. Re7+ {[%emt 0:04:46]} Kf6 {[%emt 0:02:24]} 37. Re6+ {[%emt 0:01:52]} Kf7 {[%emt 0:00:43][%cal Od2d4] Strongly threatening ...Rxd4!} 38. Re2 {[%emt 0:00:12]} Rd3+ {[%emt 0:00:10]} 39. Re3 {[%emt 0:00:05]} Rd1 {[%emt 0:00:51]} 40. Nf3 {[%emt 0:01:34]} Rb1 {[%emt 0:01:30]} (40... Kf6 $142 41. Kf4 Rf1) 41. Ng5+ {[%emt 0:01:49]} Kg8 {[%emt 0:00:19]} 42. h4 {[%emt 0:02:19] Re8+ is the strong threat.} Rxb5 {[%emt 0:00:20]} (42... h6 $142) 43. Re8+ {[%emt 0:00:15]} Kg7 {[%emt 0:00:11]} 44. Re7+ {[%emt 0:00:09]} Kg8 {[%emt 0:00:59]} 45. Nxh7 {[%emt 0:01:35]} ({Weaker is} 45. Rxh7 Rxg5+ 46. hxg5 Kxh7 $15) 45... Rb3 {[%emt 0:02:21]} 46. Nf6+ {[%emt 0:01:29]} Kf8 {[%emt 0:00:07]} 47. Re3 {[%emt 0:00:13]} Nc4 {[%emt 0:01:43]} 48. Nd7+ {[%emt 0:00:27]} Kf7 {[%emt 0:00:33]} 49. Rf3+ {[%emt 0:01:00]} Ke7 {[%emt 0:00:30]} 50. Nc5 {[%emt 0:00:20]} Rb5 {[%emt 0:00:21]} 51. Ne4 {[%emt 0:00:46]} Rb6 {[%emt 0:02:18]} 52. Ng5 {[%emt 0:01:09]} Nd6 {[%emt 0:02:59]} 53. Re3+ {[%emt 0:00:31]} Kd7 {[%emt 0:00:19]} 54. Rd3 {[%emt 0:00:25]} Ke7 {[%emt 0:00:16]} 55. Kg4 {[%emt 0:02:29]} Rb5 {[%emt 0:01:43]} 56. Re3+ {[%emt 0:02:00]} Kd7 {[%emt 0:00:13]} 57. Nf3 {[%emt 0:00:54]} Nf7 {[%emt 0:01:13]} 58. Nd4 {[%emt 0:00:43]} Rd5 {[%emt 0:01:13]} 59. f4 {[%emt 0:00:56][%cal Bf2f4,Bf4e5][%mdl 32]} Nd6 {[%emt 0:05:02]} (59... Nh6+ $142 60. Kf3 Rh5) 60. Re5 {[%emt 0:01:54]} Rxe5 {[%emt 0:00:50]} 61. fxe5 {[%emt 0:00:01] KN-KN} Ne4 {[%emt 0:00:23]} 62. Ne2 {[%emt 0:00:11]} Ke6 {[%emt 0:00:26]} 63. Kf4 {[%emt 0:00:08]} Nc5 {[%emt 0:01:19]} 64. Nd4+ {[%emt 0:02:59]} Kd5 {[%emt 0:00:08] [#]} 65. e6 $1 {[%emt 0:00:12] White wants to mate with e7.} Nxe6+ {[%emt 0:00:22]} (65... Nd3+ 66. Ke3) 66. Nxe6 {[%emt 0:00:10] White mates.} Kxe6 {[%emt 0:00:02]} 67. Kg5 {[%emt 0:00:11]} Kf7 {[%emt 0:00:03]} 68. h5 {[%emt 0:00:11]} Ke8 {[%emt 0:01:19] Weighted Error Value: White=0.13 (very precise) /Black=0.24 (precise)} 1-0